[Event "Early-Titled-Tuesday-Blitz-October-24-2023"]
[Site "Chess.com"]
[Date "2023.10.24"]
[Round "6"]
[White "Doomfist26"]
[Black "kleinebeer98"]
[Result "0-1"]
[WhiteElo "2639"]
[BlackElo "2848"]
[TimeControl "180+1"]
[EndTime "9:02:31 PDT"]
[Termination "kleinebeer98 won by resignation"]

1. e4 {[%clk 0:03:00.9]} 1... e5 {[%clk 0:02:59.7]} 2. Nf3 {[%clk 0:03:01]} 2...
Nc6 {[%clk 0:03:00.3]} 3. Bb5 {[%clk 0:03:01.5]} 3... f5 {[%clk 0:03:00.8]} 4.
d3 {[%clk 0:02:59.2]} 4... fxe4 {[%clk 0:03:00.7]} 5. dxe4 {[%clk 0:03:00.1]}
5... Nf6 {[%clk 0:03:01.3]} 6. Nc3 {[%clk 0:02:54.1]} 6... Bb4 {[%clk
0:03:01.1]} 7. O-O {[%clk 0:02:48.9]} 7... Bxc3 {[%clk 0:03:01.2]} 8. bxc3
{[%clk 0:02:49.8]} 8... d6 {[%clk 0:03:00.5]} 9. Bc4 {[%clk 0:02:39.4]} 9... Qe7
{[%clk 0:02:59.1]} 10. Rb1 {[%clk 0:02:33.9]} 10... Na5 {[%clk 0:02:54.9]} 11.
Bb5+ {[%clk 0:02:31.2]} 11... Bd7 {[%clk 0:02:49.4]} 12. Bg5 {[%clk 0:02:09.2]}
12... Bxb5 {[%clk 0:02:32.1]} 13. Rxb5 {[%clk 0:02:10.1]} 13... b6 {[%clk
0:02:32.6]} 14. Nh4 {[%clk 0:02:03]} 14... Qe6 {[%clk 0:02:27]} 15. f4 {[%clk
0:01:40.8]} 15... O-O {[%clk 0:02:16.5]} 16. fxe5 {[%clk 0:01:29.2]} 16... Nxe4
{[%clk 0:02:15.9]} 17. Rxf8+ {[%clk 0:00:56.8]} 17... Rxf8 {[%clk 0:02:16.8]}
18. Qh5 {[%clk 0:00:55.9]} 18... g6 {[%clk 0:01:49.8]} 19. Qh6 {[%clk
0:00:52.3]} 19... Nxc3 {[%clk 0:01:50.4]} 20. h3 {[%clk 0:00:35.9]} 20... Nxb5
{[%clk 0:01:48.9]} 21. Bf6 {[%clk 0:00:36.3]} 21... Rxf6 {[%clk 0:01:48.6]} 22.
exf6 {[%clk 0:00:37.2]} 22... Qxf6 {[%clk 0:01:48.8]} 23. Nf3 {[%clk 0:00:37.5]}
23... Nd4 {[%clk 0:01:39.3]} 24. Ng5 {[%clk 0:00:37.1]} 24... Ne2+ {[%clk
0:01:39.9]} 0-1

[Event "Early-Titled-Tuesday-Blitz-October-24-2023"]
[Site "Chess.com"]
[Date "2023.10.24"]
[Round "6"]
[White "koncheto"]
[Black "UmarovSabir"]
[Result "1-0"]
[WhiteElo "2543"]
[BlackElo "2321"]
[TimeControl "180+1"]
[EndTime "9:02:33 PDT"]
[Termination "koncheto won by resignation"]

1. e4 {[%clk 0:03:00.9]} 1... c6 {[%clk 0:02:59.5]} 2. d4 {[%clk 0:03:01]} 2...
d6 {[%clk 0:02:59.7]} 3. Nc3 {[%clk 0:03:01.7]} 3... g6 {[%clk 0:03:00.1]} 4. h4
{[%clk 0:02:59.5]} 4... h5 {[%clk 0:02:59]} 5. Nf3 {[%clk 0:02:59.3]} 5... Bg7
{[%clk 0:02:59.1]} 6. a4 {[%clk 0:02:59]} 6... Bg4 {[%clk 0:02:58.8]} 7. Be3
{[%clk 0:02:51.5]} 7... a5 {[%clk 0:02:48.1]} 8. Qd2 {[%clk 0:02:51.8]} 8...
Bxf3 {[%clk 0:02:44.8]} 9. gxf3 {[%clk 0:02:51.9]} 9... Na6 {[%clk 0:02:44.4]}
10. f4 {[%clk 0:02:51.9]} 10... Nf6 {[%clk 0:02:42.9]} 11. Rg1 {[%clk
0:02:46.8]} 11... Ng4 {[%clk 0:02:40.7]} 12. Be2 {[%clk 0:02:40.7]} 12... Nxe3
{[%clk 0:02:39.2]} 13. Qxe3 {[%clk 0:02:41.3]} 13... Nb4 {[%clk 0:02:38.8]} 14.
O-O-O {[%clk 0:02:40]} 14... Qb6 {[%clk 0:02:30.7]} 15. f5 {[%clk 0:02:37.3]}
15... Bh6 {[%clk 0:02:00.4]} 16. f4 {[%clk 0:02:35.7]} 16... O-O-O {[%clk
0:01:40.2]} 17. fxg6 {[%clk 0:02:32.5]} 17... fxg6 {[%clk 0:01:40.1]} 18. Rxg6
{[%clk 0:02:32.8]} 18... Rdf8 {[%clk 0:01:19.8]} 19. Rf1 {[%clk 0:02:28.2]}
19... e5 {[%clk 0:01:17.7]} 20. Rxh6 {[%clk 0:02:21.6]} 20... Rxh6 {[%clk
0:00:44.3]} 21. fxe5 {[%clk 0:02:21]} 21... Rxf1+ {[%clk 0:00:30.2]} 22. Bxf1
{[%clk 0:02:21.9]} 22... Rg6 {[%clk 0:00:29.7]} 23. Bh3+ {[%clk 0:02:07.1]}
23... Kb8 {[%clk 0:00:29.5]} 24. Bf5 {[%clk 0:02:06.8]} 24... Rf6 {[%clk
0:00:17.8]} 25. exf6 {[%clk 0:02:05.5]} 1-0

[Event "Early-Titled-Tuesday-Blitz-October-24-2023"]
[Site "Chess.com"]
[Date "2023.10.24"]
[Round "6"]
[White "GAusal"]
[Black "Eloist"]
[Result "0-1"]
[WhiteElo "2291"]
[BlackElo "2464"]
[TimeControl "180+1"]
[EndTime "9:02:46 PDT"]
[Termination "Eloist won by checkmate"]

1. d4 {[%clk 0:03:00.9]} 1... e6 {[%clk 0:03:00.1]} 2. Nf3 {[%clk 0:03:00.6]}
2... Nf6 {[%clk 0:03:00.4]} 3. c4 {[%clk 0:02:59.6]} 3... b6 {[%clk 0:03:00.5]}
4. g3 {[%clk 0:02:58.9]} 4... Bb7 {[%clk 0:03:00.7]} 5. Bg2 {[%clk 0:02:59.3]}
5... Be7 {[%clk 0:03:01.1]} 6. O-O {[%clk 0:02:58.9]} 6... O-O {[%clk
0:03:01.3]} 7. a3 {[%clk 0:02:58.4]} 7... c5 {[%clk 0:03:00.4]} 8. Bg5 {[%clk
0:02:52.9]} 8... h6 {[%clk 0:02:54.2]} 9. Bf4 {[%clk 0:02:48.3]} 9... cxd4
{[%clk 0:02:51.7]} 10. Qxd4 {[%clk 0:02:44.5]} 10... d6 {[%clk 0:02:40.5]} 11.
Nc3 {[%clk 0:02:43.5]} 11... e5 {[%clk 0:02:39.1]} 12. Bxe5 {[%clk 0:02:40.4]}
12... dxe5 {[%clk 0:02:38.9]} 13. Qxe5 {[%clk 0:02:40.9]} 13... Nc6 {[%clk
0:02:33.7]} 14. Qf5 {[%clk 0:02:37.8]} 14... Qc8 {[%clk 0:02:17.4]} 15. Qc2
{[%clk 0:02:27.8]} 15... Qe6 {[%clk 0:02:11.9]} 16. b3 {[%clk 0:02:26]} 16...
Rad8 {[%clk 0:02:07.9]} 17. Rad1 {[%clk 0:02:24.1]} 17... Bxa3 {[%clk
0:02:03.2]} 18. e3 {[%clk 0:02:19.9]} 18... Nb4 {[%clk 0:01:49.9]} 19. Qe2
{[%clk 0:02:16.9]} 19... Ne4 {[%clk 0:01:38.3]} 20. Nxe4 {[%clk 0:02:13.7]}
20... Bxe4 {[%clk 0:01:29.1]} 21. Nd4 {[%clk 0:02:06.7]} 21... Qg6 {[%clk
0:01:17.5]} 22. Bxe4 {[%clk 0:02:04.2]} 22... Qxe4 {[%clk 0:01:17.5]} 23. Ra1
{[%clk 0:02:03.6]} 23... Rxd4 {[%clk 0:01:15.8]} 24. Rxa3 {[%clk 0:02:00.1]}
24... Rfd8 {[%clk 0:01:11.1]} 25. Rxa7 {[%clk 0:01:52.8]} 25... Nc6 {[%clk
0:00:59.9]} 26. Rb7 {[%clk 0:01:48.1]} 26... Ne5 {[%clk 0:00:59.3]} 27. Rxb6
{[%clk 0:01:45.5]} 27... Nf3+ {[%clk 0:00:58]} 28. Kg2 {[%clk 0:01:42]} 28...
Nh4+ {[%clk 0:00:42.2]} 29. Kh3 {[%clk 0:01:36]} 29... Qg2# {[%clk 0:00:36.8]}
0-1

[Event "Early-Titled-Tuesday-Blitz-October-24-2023"]
[Site "Chess.com"]
[Date "2023.10.24"]
[Round "6"]
[White "DKmirl"]
[Black "dianamirza"]
[Result "1-0"]
[WhiteElo "2293"]
[BlackElo "2009"]
[TimeControl "180+1"]
[EndTime "9:02:46 PDT"]
[Termination "DKmirl won by resignation"]

1. d4 {[%clk 0:03:00.9]} 1... Nf6 {[%clk 0:02:57.6]} 2. Nf3 {[%clk 0:03:01.4]}
2... g6 {[%clk 0:02:57.9]} 3. g3 {[%clk 0:03:02.1]} 3... Bg7 {[%clk 0:02:58.6]}
4. Bg2 {[%clk 0:03:02.8]} 4... O-O {[%clk 0:02:59.5]} 5. O-O {[%clk 0:03:02.6]}
5... d6 {[%clk 0:03:00.4]} 6. Nc3 {[%clk 0:03:02]} 6... c5 {[%clk 0:02:54.8]} 7.
dxc5 {[%clk 0:03:01.8]} 7... dxc5 {[%clk 0:02:55]} 8. Qxd8 {[%clk 0:03:02.5]}
8... Rxd8 {[%clk 0:02:55.4]} 9. Be3 {[%clk 0:03:03.2]} 9... Na6 {[%clk 0:02:48]}
10. Rfd1 {[%clk 0:03:02.9]} 10... Bf5 {[%clk 0:02:41.8]} 11. Nh4 {[%clk
0:03:01.8]} 11... Bxc2 {[%clk 0:02:39.6]} 12. Rdc1 {[%clk 0:02:59.2]} 12... Bf5
{[%clk 0:01:47.3]} 13. Nxf5 {[%clk 0:02:53.7]} 13... gxf5 {[%clk 0:01:48.2]} 14.
Bxb7 {[%clk 0:02:53.9]} 14... Rab8 {[%clk 0:01:33.6]} 15. Bxa6 {[%clk
0:02:53.5]} 15... Rxb2 {[%clk 0:01:33.7]} 16. Rab1 {[%clk 0:02:51.1]} 16... Rdb8
{[%clk 0:01:23.7]} 17. Rxb2 {[%clk 0:02:49.8]} 17... Rxb2 {[%clk 0:01:24.6]} 18.
Bxc5 {[%clk 0:02:44.8]} 18... Nd7 {[%clk 0:01:16.5]} 19. Bxe7 {[%clk 0:02:42.1]}
19... Be5 {[%clk 0:01:01.7]} 20. a4 {[%clk 0:02:23.8]} 20... Nb6 {[%clk
0:00:54.4]} 21. Bc5 {[%clk 0:02:18.7]} 21... Bxc3 {[%clk 0:00:46.9]} 22. Rxc3
{[%clk 0:02:09.8]} 22... Nxa4 {[%clk 0:00:45.8]} 23. Rc1 {[%clk 0:02:06.7]}
23... Nxc5 {[%clk 0:00:42.3]} 24. Rxc5 {[%clk 0:02:06]} 24... Ra2 {[%clk
0:00:42.3]} 25. Bd3 {[%clk 0:01:59]} 25... a5 {[%clk 0:00:37.7]} 26. Rxf5 {[%clk
0:01:56.5]} 26... Kg7 {[%clk 0:00:34.3]} 27. Rxf7+ {[%clk 0:01:54.1]} 27... Kg8
{[%clk 0:00:31.4]} 28. Rxh7 {[%clk 0:01:50.1]} 28... a4 {[%clk 0:00:24.9]} 29.
Bc4+ {[%clk 0:01:47.9]} 29... Kxh7 {[%clk 0:00:23.2]} 30. Bxa2 {[%clk
0:01:48.8]} 1-0

[Event "Early-Titled-Tuesday-Blitz-October-24-2023"]
[Site "Chess.com"]
[Date "2023.10.24"]
[Round "6"]
[White "Orujov2008"]
[Black "MaxLeto"]
[Result "1-0"]
[WhiteElo "2745"]
[BlackElo "2557"]
[TimeControl "180+1"]
[EndTime "9:02:47 PDT"]
[Termination "Orujov2008 won by checkmate"]

1. e4 {[%clk 0:03:00.9]} 1... c5 {[%clk 0:02:59.5]} 2. Nf3 {[%clk 0:03:01]} 2...
d6 {[%clk 0:02:59.7]} 3. d4 {[%clk 0:03:01.3]} 3... cxd4 {[%clk 0:03:00.6]} 4.
Nxd4 {[%clk 0:03:01.6]} 4... Nf6 {[%clk 0:03:01.1]} 5. Nc3 {[%clk 0:03:02]} 5...
a6 {[%clk 0:03:01.6]} 6. h3 {[%clk 0:03:01.7]} 6... e6 {[%clk 0:03:01.8]} 7. g4
{[%clk 0:03:00.9]} 7... Be7 {[%clk 0:03:01.6]} 8. g5 {[%clk 0:03:00.8]} 8...
Nfd7 {[%clk 0:03:00.5]} 9. h4 {[%clk 0:03:00.2]} 9... b5 {[%clk 0:02:55.7]} 10.
a3 {[%clk 0:02:58.4]} 10... Bb7 {[%clk 0:02:55]} 11. Be3 {[%clk 0:02:54.1]}
11... Nb6 {[%clk 0:02:45.2]} 12. f4 {[%clk 0:02:41.7]} 12... N8d7 {[%clk
0:02:40.6]} 13. h5 {[%clk 0:02:36.7]} 13... Qc7 {[%clk 0:02:29.7]} 14. f5 {[%clk
0:02:32.9]} 14... Nc5 {[%clk 0:01:50.1]} 15. fxe6 {[%clk 0:02:28]} 15... fxe6
{[%clk 0:01:49.9]} 16. Qg4 {[%clk 0:02:28.2]} 16... Bc8 {[%clk 0:01:35]} 17. Be2
{[%clk 0:02:21.7]} 17... O-O {[%clk 0:01:27.7]} 18. h6 {[%clk 0:02:18.2]} 18...
g6 {[%clk 0:01:26.5]} 19. Nb3 {[%clk 0:02:16.3]} 19... e5 {[%clk 0:00:57.9]} 20.
Qg2 {[%clk 0:02:12.7]} 20... Be6 {[%clk 0:00:53.2]} 21. Nxc5 {[%clk 0:02:08.6]}
21... dxc5 {[%clk 0:00:53.1]} 22. O-O-O {[%clk 0:02:09.5]} 22... b4 {[%clk
0:00:49.9]} 23. axb4 {[%clk 0:02:09.3]} 23... cxb4 {[%clk 0:00:50.1]} 24. Bxb6
{[%clk 0:02:10]} 24... Qxb6 {[%clk 0:00:47.8]} 25. Nd5 {[%clk 0:02:09.5]} 25...
Bxd5 {[%clk 0:00:23.8]} 26. Rxd5 {[%clk 0:02:10.4]} 26... Rf2 {[%clk 0:00:20.5]}
27. Qg3 {[%clk 0:02:05.7]} 27... Rxe2 {[%clk 0:00:18]} 28. Qxe5 {[%clk
0:02:04.5]} 28... Qe3+ {[%clk 0:00:16.5]} 29. Kb1 {[%clk 0:02:00]} 29... Qxe4
{[%clk 0:00:17]} 30. Qg7# {[%clk 0:01:54.5]} 1-0

[Event "Early-Titled-Tuesday-Blitz-October-24-2023"]
[Site "Chess.com"]
[Date "2023.10.24"]
[Round "6"]
[White "Beca95"]
[Black "JoliyRoger"]
[Result "1-0"]
[WhiteElo "2927"]
[BlackElo "2475"]
[TimeControl "180+1"]
[EndTime "9:03:09 PDT"]
[Termination "Beca95 won on time"]

1. d4 {[%clk 0:03:00.9]} 1... Nf6 {[%clk 0:02:59.4]} 2. c4 {[%clk 0:02:56.2]}
2... e6 {[%clk 0:02:59.8]} 3. Nf3 {[%clk 0:02:56.4]} 3... c5 {[%clk 0:02:59]} 4.
d5 {[%clk 0:02:56.2]} 4... exd5 {[%clk 0:02:59.7]} 5. cxd5 {[%clk 0:02:56.7]}
5... d6 {[%clk 0:03:00.6]} 6. Nc3 {[%clk 0:02:54]} 6... g6 {[%clk 0:03:01]} 7.
Bg5 {[%clk 0:02:54]} 7... Bg7 {[%clk 0:03:01.7]} 8. e4 {[%clk 0:02:53.6]} 8...
O-O {[%clk 0:03:01.3]} 9. Nd2 {[%clk 0:02:53.7]} 9... Nbd7 {[%clk 0:02:44]} 10.
Be2 {[%clk 0:02:51.3]} 10... Re8 {[%clk 0:02:44]} 11. O-O {[%clk 0:02:50.7]}
11... a6 {[%clk 0:02:44.6]} 12. a4 {[%clk 0:02:50.2]} 12... Rb8 {[%clk 0:02:45]}
13. Bh4 {[%clk 0:02:45.9]} 13... h6 {[%clk 0:02:37.5]} 14. Qc2 {[%clk
0:02:31.5]} 14... Qc7 {[%clk 0:02:33.3]} 15. b3 {[%clk 0:02:27.8]} 15... b6
{[%clk 0:02:15.4]} 16. Bg3 {[%clk 0:02:25.8]} 16... Bf8 {[%clk 0:02:13.6]} 17.
f4 {[%clk 0:02:23.5]} 17... Bg7 {[%clk 0:01:45.8]} 18. Kh1 {[%clk 0:02:17.6]}
18... Bb7 {[%clk 0:01:14.4]} 19. Rad1 {[%clk 0:02:10.6]} 19... Rbd8 {[%clk
0:01:05]} 20. h3 {[%clk 0:02:09.1]} 20... Qc8 {[%clk 0:01:04.8]} 21. Bh2 {[%clk
0:02:08.6]} 21... Bf8 {[%clk 0:00:48.4]} 22. Bc4 {[%clk 0:02:01.5]} 22... Nh5
{[%clk 0:00:42.4]} 23. Nf3 {[%clk 0:01:56]} 23... Bg7 {[%clk 0:00:39]} 24. Rfe1
{[%clk 0:01:55.7]} 24... Nf8 {[%clk 0:00:16.3]} 25. e5 {[%clk 0:01:53.8]} 25...
g5 {[%clk 0:00:09.8]} 26. fxg5 {[%clk 0:01:47.2]} 26... hxg5 {[%clk 0:00:04.6]}
27. Nxg5 {[%clk 0:01:46.4]} 27... dxe5 {[%clk 0:00:03.1]} 28. d6 {[%clk
0:01:45.8]} 1-0

[Event "Early-Titled-Tuesday-Blitz-October-24-2023"]
[Site "Chess.com"]
[Date "2023.10.24"]
[Round "6"]
[White "chess_blitz00"]
[Black "johnmez"]
[Result "1-0"]
[WhiteElo "2499"]
[BlackElo "2319"]
[TimeControl "180+1"]
[EndTime "9:03:11 PDT"]
[Termination "chess_blitz00 won by resignation"]

1. Nf3 {[%clk 0:02:51.8]} 1... Nf6 {[%clk 0:02:59.6]} 2. b3 {[%clk 0:02:52.7]}
2... g6 {[%clk 0:02:55]} 3. Bb2 {[%clk 0:02:53.6]} 3... Bg7 {[%clk 0:02:55.2]}
4. g3 {[%clk 0:02:51]} 4... O-O {[%clk 0:02:55.3]} 5. Bg2 {[%clk 0:02:51.6]}
5... d5 {[%clk 0:02:48.4]} 6. O-O {[%clk 0:02:51]} 6... c5 {[%clk 0:02:36.8]} 7.
d3 {[%clk 0:02:39.3]} 7... Nc6 {[%clk 0:02:35.4]} 8. Nbd2 {[%clk 0:02:37.9]}
8... Bg4 {[%clk 0:02:25.9]} 9. h3 {[%clk 0:02:34.3]} 9... Bf5 {[%clk 0:02:22.3]}
10. Ne5 {[%clk 0:02:16.4]} 10... Nxe5 {[%clk 0:02:15.4]} 11. Bxe5 {[%clk
0:02:17.3]} 11... Qd7 {[%clk 0:02:15.6]} 12. Kh2 {[%clk 0:02:09]} 12... h5
{[%clk 0:01:59.6]} 13. e4 {[%clk 0:01:51.5]} 13... dxe4 {[%clk 0:01:55.1]} 14.
dxe4 {[%clk 0:01:50.8]} 14... Be6 {[%clk 0:00:50.6]} 15. Nf3 {[%clk 0:01:15.9]}
15... Qxd1 {[%clk 0:00:40.3]} 16. Raxd1 {[%clk 0:01:15.4]} 16... Nxe4 {[%clk
0:00:32.7]} 17. Bxg7 {[%clk 0:01:15.1]} 17... Kxg7 {[%clk 0:00:33.6]} 18. Rfe1
{[%clk 0:01:13.3]} 18... Nf6 {[%clk 0:00:31.5]} 19. Ng5 {[%clk 0:01:12.4]} 19...
Rad8 {[%clk 0:00:27.3]} 20. Rxd8 {[%clk 0:01:02.6]} 20... Rxd8 {[%clk
0:00:28.2]} 21. Rxe6 {[%clk 0:01:00.5]} 21... fxe6 {[%clk 0:00:29.1]} 22. Nxe6+
{[%clk 0:01:00.1]} 1-0

[Event "Early-Titled-Tuesday-Blitz-October-24-2023"]
[Site "Chess.com"]
[Date "2023.10.24"]
[Round "6"]
[White "ViktoriyaTarasova"]
[Black "ExchangeAB"]
[Result "0-1"]
[WhiteElo "2375"]
[BlackElo "2537"]
[TimeControl "180+1"]
[EndTime "9:03:15 PDT"]
[Termination "ExchangeAB won by resignation"]

1. d4 {[%clk 0:03:00.9]} 1... d5 {[%clk 0:02:59.9]} 2. c4 {[%clk 0:03:00.1]}
2... c6 {[%clk 0:03:00.8]} 3. Nf3 {[%clk 0:02:58.5]} 3... Nf6 {[%clk 0:03:00.7]}
4. Nc3 {[%clk 0:02:57.7]} 4... dxc4 {[%clk 0:03:01.1]} 5. a4 {[%clk 0:02:54.2]}
5... Bf5 {[%clk 0:03:00.9]} 6. Ne5 {[%clk 0:02:51.9]} 6... Nbd7 {[%clk
0:03:00.5]} 7. Nxc4 {[%clk 0:02:51.5]} 7... Nb6 {[%clk 0:03:00.9]} 8. Ne5 {[%clk
0:02:50.9]} 8... a5 {[%clk 0:03:01.3]} 9. e3 {[%clk 0:02:51.2]} 9... e6 {[%clk
0:02:55.7]} 10. g4 {[%clk 0:02:48.5]} 10... Bg6 {[%clk 0:02:51]} 11. h4 {[%clk
0:02:43.9]} 11... h6 {[%clk 0:01:50.8]} 12. Nxg6 {[%clk 0:02:41.8]} 12... fxg6
{[%clk 0:01:51.7]} 13. Bd3 {[%clk 0:02:41.6]} 13... Bb4 {[%clk 0:01:46.5]} 14.
Bxg6+ {[%clk 0:02:38.8]} 14... Kd7 {[%clk 0:01:47]} 15. Qf3 {[%clk 0:02:29.3]}
15... Nfd5 {[%clk 0:01:43.3]} 16. Bd2 {[%clk 0:02:28.3]} 16... Rf8 {[%clk
0:01:42.7]} 17. Qe2 {[%clk 0:02:27.8]} 17... Qf6 {[%clk 0:01:37.8]} 18. Be4
{[%clk 0:02:24.6]} 18... Rae8 {[%clk 0:01:32]} 19. f4 {[%clk 0:02:22.9]} 19...
Kc8 {[%clk 0:01:28.8]} 20. g5 {[%clk 0:02:14.4]} 20... Qe7 {[%clk 0:01:25]} 21.
Qd3 {[%clk 0:01:45.8]} 21... Kb8 {[%clk 0:01:22.7]} 22. Bg6 {[%clk 0:01:30.1]}
22... Rd8 {[%clk 0:01:22.5]} 23. Ne4 {[%clk 0:01:29.9]} 23... Bxd2+ {[%clk
0:01:10.8]} 24. Qxd2 {[%clk 0:01:30.1]} 24... Nc4 {[%clk 0:01:07.9]} 25. Qd3
{[%clk 0:01:18.8]} 25... Qb4+ {[%clk 0:01:05.1]} 26. Ke2 {[%clk 0:00:45.1]}
26... Ncxe3 {[%clk 0:01:01.9]} 0-1

[Event "Early-Titled-Tuesday-Blitz-October-24-2023"]
[Site "Chess.com"]
[Date "2023.10.24"]
[Round "6"]
[White "lilleper1"]
[Black "Andrei_Skvortsov"]
[Result "1-0"]
[WhiteElo "2879"]
[BlackElo "2658"]
[TimeControl "180+1"]
[EndTime "9:03:22 PDT"]
[Termination "lilleper1 won by resignation"]

1. e4 {[%clk 0:03:00.9]} 1... d5 {[%clk 0:02:59.1]} 2. exd5 {[%clk 0:03:00.7]}
2... Qxd5 {[%clk 0:03:00]} 3. Nc3 {[%clk 0:03:01.1]} 3... Qe5+ {[%clk
0:02:59.8]} 4. Be2 {[%clk 0:02:59.7]} 4... Bg4 {[%clk 0:03:00.1]} 5. d4 {[%clk
0:02:57.5]} 5... Bxe2 {[%clk 0:03:00.4]} 6. Ngxe2 {[%clk 0:02:57.3]} 6... Qa5
{[%clk 0:03:00]} 7. O-O {[%clk 0:02:55.2]} 7... Nf6 {[%clk 0:03:00]} 8. Bd2
{[%clk 0:02:39.7]} 8... Nc6 {[%clk 0:02:56.1]} 9. Ne4 {[%clk 0:02:32.6]} 9...
Qd5 {[%clk 0:02:48.5]} 10. Nxf6+ {[%clk 0:02:32]} 10... gxf6 {[%clk 0:02:48.1]}
11. c3 {[%clk 0:02:31.1]} 11... e5 {[%clk 0:02:39.3]} 12. Be3 {[%clk 0:02:24]}
12... O-O-O {[%clk 0:02:37.9]} 13. Qb3 {[%clk 0:02:23.3]} 13... Rg8 {[%clk
0:02:12.1]} 14. Qxd5 {[%clk 0:02:17.3]} 14... Rxd5 {[%clk 0:02:11.7]} 15. Rad1
{[%clk 0:02:15.9]} 15... Rd7 {[%clk 0:02:08.6]} 16. Rd2 {[%clk 0:01:50.9]} 16...
Bd6 {[%clk 0:02:02.3]} 17. Rfd1 {[%clk 0:01:47.2]} 17... Ne7 {[%clk 0:02:00.1]}
18. c4 {[%clk 0:01:42.4]} 18... exd4 {[%clk 0:01:55.2]} 19. Rxd4 {[%clk
0:01:32.6]} 19... Nf5 {[%clk 0:01:50.3]} 20. Rd5 {[%clk 0:01:33]} 20... Nxe3
{[%clk 0:01:48.4]} 21. fxe3 {[%clk 0:01:33.9]} 21... Re7 {[%clk 0:01:48.5]} 22.
Kf2 {[%clk 0:01:28]} 22... Be5 {[%clk 0:01:43.4]} 23. b3 {[%clk 0:01:24.6]}
23... c6 {[%clk 0:01:42.6]} 24. R5d3 {[%clk 0:01:24.5]} 24... h5 {[%clk
0:01:25.4]} 25. g3 {[%clk 0:01:07.5]} 25... h4 {[%clk 0:01:20.3]} 26. gxh4
{[%clk 0:01:04.8]} 26... Rh8 {[%clk 0:01:19.1]} 27. Ng3 {[%clk 0:00:52]} 27...
Rxh4 {[%clk 0:01:16.3]} 28. Rd8+ {[%clk 0:00:51.8]} 28... Kc7 {[%clk 0:01:16.9]}
29. Nf5 {[%clk 0:00:52.2]} 29... Rxh2+ {[%clk 0:01:10.5]} 30. Kg1 {[%clk
0:00:49.5]} 30... Re6 {[%clk 0:00:52.2]} 31. c5 {[%clk 0:00:49.6]} 1-0

[Event "Early-Titled-Tuesday-Blitz-October-24-2023"]
[Site "Chess.com"]
[Date "2023.10.24"]
[Round "6"]
[White "KononenkoD"]
[Black "Maect19"]
[Result "1-0"]
[WhiteElo "2589"]
[BlackElo "2290"]
[TimeControl "180+1"]
[EndTime "9:03:24 PDT"]
[Termination "KononenkoD won by checkmate"]

1. e4 {[%clk 0:03:00.9]} 1... e5 {[%clk 0:02:59.1]} 2. Nf3 {[%clk 0:03:00.3]}
2... Nc6 {[%clk 0:02:58.7]} 3. d4 {[%clk 0:03:00.5]} 3... exd4 {[%clk
0:02:56.5]} 4. Nxd4 {[%clk 0:03:01.4]} 4... Bc5 {[%clk 0:02:55]} 5. Nxc6 {[%clk
0:03:00.8]} 5... Qf6 {[%clk 0:02:53.7]} 6. Qf3 {[%clk 0:03:01.4]} 6... dxc6
{[%clk 0:02:51]} 7. Bc4 {[%clk 0:02:59.2]} 7... Be6 {[%clk 0:02:47.5]} 8. Bxe6
{[%clk 0:02:58.9]} 8... Qxe6 {[%clk 0:02:43.7]} 9. Be3 {[%clk 0:02:54.3]} 9...
Bxe3 {[%clk 0:02:40.6]} 10. Qxe3 {[%clk 0:02:55.2]} 10... Ne7 {[%clk 0:02:35.9]}
11. Nd2 {[%clk 0:02:51.8]} 11... O-O {[%clk 0:02:35.4]} 12. O-O {[%clk 0:02:51]}
12... b6 {[%clk 0:02:33.6]} 13. f4 {[%clk 0:02:46.2]} 13... f5 {[%clk
0:02:26.6]} 14. e5 {[%clk 0:02:39.2]} 14... Rad8 {[%clk 0:02:20.7]} 15. Qb3
{[%clk 0:02:36.5]} 15... Nd5 {[%clk 0:02:02.8]} 16. Rad1 {[%clk 0:02:30.8]}
16... Kh8 {[%clk 0:01:54.3]} 17. Nf3 {[%clk 0:02:13.9]} 17... Nxf4 {[%clk
0:01:43.9]} 18. Rxd8 {[%clk 0:02:11.9]} 18... Rxd8 {[%clk 0:01:42.9]} 19. Ng5
{[%clk 0:02:11.8]} 19... Qxb3 {[%clk 0:01:36.4]} 20. axb3 {[%clk 0:02:09.9]}
20... Ne2+ {[%clk 0:01:36]} 21. Kf2 {[%clk 0:02:09.8]} 21... Re8 {[%clk
0:01:16.5]} 22. Kxe2 {[%clk 0:02:07.1]} 22... Rxe5+ {[%clk 0:01:16.2]} 23. Kd3
{[%clk 0:02:04]} 23... Rd5+ {[%clk 0:01:15.2]} 24. Kc3 {[%clk 0:02:01.2]} 24...
g6 {[%clk 0:01:14.7]} 25. Nf3 {[%clk 0:01:59]} 25... Rc5+ {[%clk 0:01:11.9]} 26.
Kd3 {[%clk 0:01:59.2]} 26... Rd5+ {[%clk 0:01:11.8]} 27. Ke3 {[%clk 0:01:57.8]}
27... Rc5 {[%clk 0:01:10.2]} 28. c3 {[%clk 0:01:57.5]} 28... Rb5 {[%clk
0:01:09.2]} 29. b4 {[%clk 0:01:56]} 29... c5 {[%clk 0:01:07.7]} 30. bxc5 {[%clk
0:01:53.9]} 30... Rxb2 {[%clk 0:01:06.6]} 31. cxb6 {[%clk 0:01:51]} 31... cxb6
{[%clk 0:01:01.6]} 32. g3 {[%clk 0:01:46.5]} 32... a5 {[%clk 0:00:58.9]} 33. Rd1
{[%clk 0:01:45]} 33... a4 {[%clk 0:00:57.9]} 34. Rd8+ {[%clk 0:01:38.2]} 34...
Kg7 {[%clk 0:00:57]} 35. Ra8 {[%clk 0:01:39.1]} 35... b5 {[%clk 0:00:56.5]} 36.
h4 {[%clk 0:01:36.1]} 36... Rg2 {[%clk 0:00:49.5]} 37. Kf4 {[%clk 0:01:33.6]}
37... Rc2 {[%clk 0:00:48.2]} 38. Ra7+ {[%clk 0:01:32.1]} 38... Kf6 {[%clk
0:00:34]} 39. Ng5 {[%clk 0:01:28.4]} 39... h6 {[%clk 0:00:28.4]} 40. Rf7# {[%clk
0:01:27.1]} 1-0